Workbook

Sheet Cover
E2: Don't Change | G2: Automatic Generation
E3: Fill In | G3: Error Entry
A6: General Information
A7: DataSet Version | B7: A | C7: B
A8: Project Version | B8: DVX1 | C8: 17
A9: Config Match | B9: 0
A10: Generated Parameter String：
A11: 004D7E1045C28BA89EFD94880280000000000000088C20080200000800012D2D2D2D2D2D2D008C8C8C8C8C8C8C800404040404040430005050505050505BC0800357520006AEA6000D5D50001ABA996723EBE800000000000000000000001111124FD272
A12: 0000000001001101011111100001000001000101110000101000101110101000100111101111110110010100100010000000001010000000000000000000000000000000000000000000000000000000000010001000110000100000000010000000001000000000000000000000100000000000000000010010110100101101001011010010110100101101001011010010110100000000100011001000110010001100100011001000110010001100100011001000000000000100000001000000010000000100000001000000010000000100001100000000000001010000010100000101000001010000010100000101000001011011110000001000000000000011010101110101001000000000000001101010111010100110000000000000110101011101010100000000000000011010101110101001100101100111001000111110101111101000000000000000000000000000000000000000000000000000000000000000000000000000000000000000000000010001000100010001001001001 | C12: =LEN(A12) -> 781
A13: 0000000001001101011111100001000001000101110000 | C13: =LEN(A13) -> 46

Sheet BitMap (hidden)
A1: 7 | B1: 6 | C1: 5 | D1: 4 | E1: 3 | F1: 2 | G1: 1 | H1: 0 | I1: 7 | J1: 6 | K1: 5 | L1: 4 | M1: 3 | N1: 2 | O1: 1 | P1: 0 | Q1: 7 | R1: 6 | S1: 5 | T1: 4 | U1: 3 | V1: 2 | W1: 1 | X1: 0 | Y1: 7 | Z1: 6 | AA1: 5 | AB1: 4 | AC1: 3 | AD1: 2 | AE1: 1 | AF1: 0
A2: 0 | I2: 1 | Q2: 2 | Y2: 3 | AG2: 1
A3: Basic_cfg
A4: Dataset_Version | K4: Project_Num
A5: Version_High | F5: Version_Low | K5: Project_Num1 | Q5: Project_Num2 | W5: Project_Num3 | AC5: Project_Num4
A6: 4 | I6: 5 | Q6: 6 | Y6: 7
A7: Basic_cfg | O7: CHNOutput
A8: Project_Num | K8: Config_Match | O8: Vf_Max_Voltage | S8: Output_CHN1 | Z8: Output_CHN2
A9: Project_Num4 | C9: Project_Num5 | G9: Project_Num6 | K9: Config_Match | O9: Vf_Max_Voltage | S9: Usage | V9: LED_Num | Z9: Usage | AC9: LED_Num
A10: 8 | I10: 9 | Q10: 10 | Y10: 11
A11: CHNOutput
A12: Output_CHN3 | H12: Output_CHN4 | O12: Output_LSD1 | AF12: Output_LSD2
A13: Usage | D13: LED_Num | H13: Usage | K13: LED_Num | O13: Usage | R13: DutyCycle | Y13: Assign_CHN | AB13: LED_Num | AF13: Usage
A14: 12 | I14: 13 | Q14: 14 | Y14: 15
A15: CHNOutput
A16: Output_LSD2 | H16: Output_LSD2 | Q16: Output_PWM1 | AB16: Output_PWM2
A17: Usage | C17: DutyCycle | H17: DutyCycle | J17: Assign_CHN | M17: LED_Num | Q17: Usage | U17: DutyCycle | AB17: Usage | AF17: DutyCycle
A18: 16 | I18: 17 | Q18: 18 | Y18: 19 | AG18: 2
A19: CHNOutput | AC19: LampCfg
A20: Output_PWM2 | G20: Output_PWM3 | R20: Output_PWM4 | AC20: HB_CFG
A21: DutyCycle | G21: Usage | K21: DutyCycle | R21: Usage | V21: DutyCycle | AC21: Ramp_Method | AD21: Combine_Fog | AF21: LDM_Ramp
A22: 20 | I22: 21 | Q22: 22 | Y22: 23
A23: LampCfg
A24: HB_CFG | N24: TURN_CFG | S24: DPL_CFG
A25: LDM_Ramp | B25: Fade_Fast | F25: Fade_Mid | J25: Fade_Slow | N25: Signal_Source | O25: Delay_Time | S25: Signal_Source | U25: PL_Trigger_DutyCycle | Z25: PL_DutyCycle | AF25: Combine_LB_Outage
A26: 24 | I26: 25 | Q26: 26 | Y26: 27
A27: LampCfg | Z27: FAN
A28: DPL_CFG | J28: SBL_CFG | Z28: FAN_CFG
A29: Combine_LB_Outage | B29: DRL_Combine_TI | C29: DRL_TI_Control | E29: DRL_Activation_Time_After_Deact | I29: DRL_ON_FTP | J29: Trigger_SteerAngle | R29: MAX_Speed | Z29: SelftestTime | AB29: Outage_Detect | AC29: Active_Condition | AE29: Assign_NTC
A30: 28 | I30: 29 | Q30: 30 | Y30: 31
A31: FAN | E31: BIN
A32: FAN_CFG | E32: CHN1_BIN_CFG
A33: Active_Temp | E33: BIN_Source | G33: BIN_Para | O33: BIN1_Current | W33: BIN2_Current | AE33: BIN3_Current
A34: 32 | I34: 33 | Q34: 34 | Y34: 35 | AG34: 3
A35: BIN
A36: CHN1_BIN_CFG
A37: BIN3_Current | G37: BIN4_Current | O37: BIN5_Current | W37: BIN6_Current | AE37: BIN7_Current
A38: 36 | I38: 37 | Q38: 38 | Y38: 39
A39: BIN
A40: CHN1_BIN_CFG | G40: CHN2_BIN_CFG
A41: BIN7_Current | G41: BIN_Source | I41: BIN_Para | Q41: BIN1_Current | Y41: BIN2_Current
A42: 40 | I42: 41 | Q42: 42 | Y42: 43
A43: BIN
A44: CHN2_BIN_CFG
A45: BIN3_Current | I45: BIN4_Current | Q45: BIN5_Current | Y45: BIN6_Current
A46: 44 | I46: 45 | Q46: 46 | Y46: 47
A47: BIN
A48: CHN2_BIN_CFG | I48: CHN3_BIN_CFG
A49: BIN7_Current | I49: BIN_Source | K49: BIN_Para | S49: BIN1_Current | AA49: BIN2_Current
A50: 48 | I50: 49 | Q50: 50 | Y50: 51 | AG50: 4
A51: BIN
A52: CHN3_BIN_CFG
A53: BIN2_Current | C53: BIN3_Current | K53: BIN4_Current | O53: BIN4_Current | S53: BIN5_Current | AA53: BIN6_Current
A54: 52 | I54: 53 | Q54: 54 | Y54: 55
A55: BIN
A56: CHN3_BIN_CFG | K56: CHN4_BIN_CFG
A57: BIN6_Current | C57: BIN7_Current | K57: BIN_Source | M57: BIN_Para | U57: BIN1_Current | AC57: BIN2_Current
A58: 56 | I58: 57 | Q58: 58 | Y58: 59
A59: BIN
A60: CHN4_BIN_CFG
A61: BIN2_Current | E61: BIN3_Current | M61: BIN4_Current | U61: BIN5_Current | AC61: BIN6_Current
A62: 60 | I62: 61 | Q62: 62 | Y62: 63
A63: BIN | M63: NTC
A64: CHN4_BIN_CFG | M64: NTC_CFG | W64: CHN1_NTC_CFG
A65: BIN6_Current | E65: BIN7_Current | M65: R0 | N65: B_Constant | W65: NTC_Source | Z65: Derate1_Dim | AB65: Derate2_Temp | AE65: Derate2_Dim
A66: 64 | I66: 65 | Q66: 66 | Y66: 67 | AG66: 5
A67: NTC
A68: CHN1_NTC_CFG | V68: CHN2_NTC_CFG
A69: Derate3_Temp | D69: Derate3_Dim | G69: Derate4_Temp | J69: Derate4_Dim | N69: Derate5_Temp | Q69: Derate5_Dim | V69: NTC_Source | Y69: Derate1_Dim | AA69: Derate2_Temp | AD69: Derate2_Dim | AF69: Derate3_Temp
A70: 68 | I70: 69 | Q70: 70 | Y70: 71
A71: NTC
A72: CHN2_NTC_CFG | U72: CHN3_NTC_CFG
A73: Derate3_Temp | C73: Derate3_Dim | F73: Derate4_Temp | I73: Derate4_Dim | M73: Derate5_Temp | P73: Derate5_Dim | U73: NTC_Source | X73: Derate1_Dim | Z73: Derate2_Temp | AC73: Derate2_Dim | AE73: Derate3_Temp
A74: 72 | I74: 73 | Q74: 74 | Y74: 75
A75: NTC
A76: CHN3_NTC_CFG | T76: CHN4_NTC_CFG
A77: Derate3_Temp | B77: Derate3_Dim | E77: Derate4_Temp | H77: Derate4_Dim | L77: Derate5_Temp | O77: Derate5_Dim | T77: NTC_Source | W77: Derate1_Dim | Y77: Derate2_Temp | AB77: Derate2_Dim | AD77: Derate3_Temp
A78: 76 | I78: 77 | Q78: 78 | Y78: 79
A79: NTC | S79: ANIM
A80: CHN4_NTC_CFG | S80: ANIM_CFG | AE80: DRL_ANIM_CFG
A81: Derate3_Dim | D81: Derate4_Temp | G81: Derate4_Dim | K81: Derate5_Temp | N81: Derate5_Dim | S81: Welcome_Delay | Y81: Farewell_Delay | AE81: Target_DutyCycle
A82: 80 | I82: 81 | Q82: 82 | Y82: 83 | AG82: 6
A83: ANIM
A84: DRL_ANIM_CFG | V84: PWM1_ANIM_CFG
A85: Target_DutyCycle | F85: Fade_On_Duration | N85: Fade_Off_Duration | V85: Target_DutyCycle | AC85: Fade_On_Duration
A86: 84 | I86: 85 | Q86: 86 | Y86: 87
A87: ANIM
A88: PWM1_ANIM_CFG | E88: PWM1_ANIM_CFG | M88: PWM2_ANIM_CFG
A89: Fade_On_Duration | E89: Fade_Off_Duration | M89: Target_DutyCycle | T89: Fade_On_Duration | AB89: Fade_Off_Duration
A90: 88 | I90: 89 | Q90: 90 | Y90: 91
A91: ANIM
A92: PWM2_ANIM_CFG | D92: PWM3_ANIM_CFG | AA92: PWM4_ANIM_CFG
A93: Fade_Off_Duration | D93: Target_DutyCycle | K93: Fade_On_Duration | S93: Fade_Off_Duration | AA93: Target_DutyCycle
A94: 92 | I94: 93 | Q94: 94 | Y94: 95
A95: ANIM | R95: LEDFailure
A96: PWM4_ANIM_CFG | R96: CHN_Fault_CFG
A97: Target_DutyCycle | B97: Fade_On_Duration | J97: Fade_Off_Duration | R97: CHN1_Single_LED_Vf | V97: CHN2_Single_LED_Vf | Z97: CHN3_Single_LED_Vf | AD97: CHN4_Single_LED_Vf
A98: 96 | I98: 97 | Q98: 98 | Y98: 99
A99: LEDFailure | N99: 补位 | Q99: CRC
A100: CHN_Fault_CFG | B100: LB_Fault_CFG | E100: HB_Fault_CFG | H100: DRL_Fault_CFG | K100: TI_Fault_CFG | N100: Aligning
A101: CHN4_Single_LED_Vf | B101: Fault_Deact | D101: Falut_Report | E101: Fault_Deact | G101: Falut_Report | H101: Fault_Deact | J101: Falut_Report | K101: Fault_Deact | M101: Falut_Report | N101: Aligning

Sheet Data Memory Map (hidden)
E6: 0 | F6: 1 | G6: 2 | H6: 3 | I6: 4 | J6: 5 | K6: 6 | L6: 7 | M6: 8 | N6: 9 | O6: A | P6: B | Q6: C | R6: D | S6: E | T6: F
E7: 00 | F7: 61 | G7: 39 | H7: 85 | I7: 41 | J7: 42 | K7: 8F | L7: 9F | M7: 82 | N7: C4 | O7: B2 | P7: 2C | Q7: 59 | R7: 26 | S7: 1C | T7: 83
E8: 90 | F8: 72 | G8: 0E | H8: 40 | I8: 08 | J8: 8C | K8: 12 | L8: E2 | M8: 02 | N8: 00 | O8: 00 | P8: 18 | Q8: 00 | R8: 00 | S8: A0 | T8: A0
E9: A0 | F9: A0 | G9: A0 | H9: A0 | I9: A1 | J9: 00 | K9: 05 | L9: 05 | M9: 05 | N9: 05 | O9: 05 | P9: 05 | Q9: 05 | R9: 80 | S9: 23 | T9: 23
E10: 23 | F10: 23 | G10: 23 | H10: 23 | I10: 23 | J10: 30 | K10: 08 | L10: C8 | M10: C8 | N10: C8 | O10: C8 | P10: C8 | Q10: C8 | R10: C4 | S10: 10 | T10: 80
E11: 22 | F11: 04 | G11: 61 | H11: 00 | I11: 44 | J11: 08 | K11: C0 | L11: 00 | M11: 00 | N11: 00 | O11: 00 | P11: 00 | Q11: 00 | R11: 00 | S11: 01 | T11: 07
E12: 22 | F12: 5A | G12: 58 | H12: 00 | I12: 00 | J12: 00 | K12: 00 | L12: 00 | M12: 00 | N12: 00 | O12: 00 | P12: 00 | Q12: 00 | R12: 00 | S12: 11 | T12: 11
E13: 12 | F13: 4F | G13: 86 | H13: 30

Sheet Change_log (hidden)
A1: APP Version | B1: Version | C1: Data | D1: Comments | E1: Author
A2: NA | B2: AA.1 | C2: 2024-06-12 | D2: Initial Version | E2: Peiyuan Zuo
A3: NA | B3: AA.2 | C3: 2024-06-25 | D3: Complete Part "CHNOutput" | E3: Peiyuan Zuo
A4: NA | B4: AA.3 | C4: 2024-07-01 | D4: Complete Part "HB_TURN_DPL_SBL"and"FAN" | E4: Peiyuan Zuo
A5: NA | B5: AA.4 | C5: 2024-07-04 | D5: Complete Part "BIN","NTC_Derating","Animation"，"LEDFailure" , Bit→HEX and CRC | E5: Peiyuan Zuo
A6: NA | B6: AA.5 | C6: 2024-07-05 | D6: Update BitMap | E6: Peiyuan Zuo
A7: NA | B7: AA.6 | C7: 2024-07-11 | D7: Corrected version number generated | E7: Peiyuan Zuo
A8: NA | B8: AA.6.1 | C8: 2024-07-12 | D8: Change the data structure description | E8: Peiyuan Zuo
A9: NA | B9: AA.7 | C9: 2024-07-11 | D9: Added table protection against illegal modifications | E9: Peiyuan Zuo
A10: NA | B10: AA.7.1 | C10: 2024-07-15 | D10: Change the data structure description | E10: Peiyuan Zuo
A11: NA | B11: AA.7.2 | C11: 2024-07-25 | D11: Change the data structure description Add the "Project Version" | E11: Peiyuan Zuo
A12: NA | B12: AA.7.3 | C12: 2024-08-16 | D12: Change according to customer requirements | E12: Peiyuan Zuo
A13: NA | B13: AA.7.4 | C13: 2024-08-20 | D13: Change bitmap | E13: Peiyuan Zuo
A14: NA | B14: AA.7.5 | C14: 2024-08-20 | D14: Integrate interface code generation capabilities | E14: Peiyuan Zuo
A15: NA | B15: AA.7.6 | C15: 2024-08-22 | D15: Change bitmap to provide software validation | E15: Peiyuan Zuo
A16: NA | B16: AA.7.7 | C16: 2024-08-22 | D16: Configure the 764 project base items Change the bitmap calculation script | E16: Peiyuan Zuo
A17: SW0007169.A001 | B17: AA.7.8 | C17: 2024-08-23 | D17: The linkage between fault detection and reporting is cancelled | E17: Peiyuan Zuo
A18: SW0007169.A001 | B18: AA.7.9 | C18: 2024-08-29 | D18: Change the data structure for Animation and LEDFailure | E18: Peiyuan Zuo
A19: SW0007169.A001 | B19: AA.7.10 | C19: 2024-09-06 | D19: Change the Value change for "DRL_Combined_TI" and "Config Match" | E19: Peiyuan Zuo
A20: SW0007169.A001 | B20: AA | C20: 2024-10-08 | D20: Fixed an issue where customer's computer was not running | E20: Peiyuan Zuo
A21: SW0007169.A001.6 | B21: AA.7.11 | C21: 2024-10-09 | D21: 1. If lb does not detect faults, the "DRL_LB_Outage" option is disabled 2.Added LSD "Not_Used" linkage and Modify the low side duty cycle range 3.The bin current is changed to 100 mA to 1500 mAand can be entered manually 4.Change the Options of "DRL_Combined_TI" and "DRL_TI_Control" 5.FAN linkage problems are modified 6.Optimize the interface and add parameter remarks | E21: Peiyuan Zuo
A22: SW0007169.A001.6 | B22: AA.7.12 | C22: 2024-10-12 | D22: Correct the option name of DRL_TI_Control | E22: Peiyuan Zuo
A23: SW0007169.A001.6 | B23: AA.7.13 | C23: 2024-10-13 | D23: Update the generated para raw data to meet QAC test | E23: Shengwei Zhu
A24: SW0007169.A001.6 | B24: AB | C24: 2024-10-17 | D24: Solution When DRL2 exists, "TI_active,turnoff_DRL2,no_impact_on_PO2/DRL1/PO1" cannot be selected from "DRL_TI_Control" Official release | E24: Peiyuan Zuo
A25: SW0007169.A001.8 | B25: AB.1 | C25: 2024-11-01 | D25: 1.Added anti-dork Settings for DRL/PO functions 2.The bin0 value of BIN Para cfg is set to the low value 3.Open the duty cycle setting of the DRL1/2 corresponding to the PWM channel 4.Update NTC Derate5 options range 5.Corrected NTC verification function | E25: Peiyuan Zuo
A26: SW0007169.A001.8 | B26: AB.2 | C26: 2024-11-04 | D26: Modify the comment for W/F_Delay_cfg | E26: Peiyuan Zuo
A27: SW0007169.A001.8 | B27: AB.3 | C27: 2024-11-04 | D27: Modify the range and data size of NTC Derate5 Dimming cfg | E27: Peiyuan Zuo

Sheet ConstantValue (hidden)
A1: 数据大小（bits） | C1: total（bits)
A4: 2x5bits | B4: 10 | C4: =SUM(B4:B14) -> 46 | D4: Cover | E4: DateSheet_Version | F4: A | G4: B | H4: C | I4: D | J4: E | K4: F | L4: G | M4: H | N4: I | O4: J | P4: K | Q4: L | R4: M | S4: N | T4: O | U4: P | V4: Q | W4: R | X4: S | Y4: T | Z4: U | AA4: V | AB4: W | AC4: X | AD4: Y | AE4: Z
F5: 0 | G5: 1 | H5: 2 | I5: 3 | J5: 4 | K5: 5 | L5: 6 | M5: 7 | N5: 8 | O5: 9 | P5: 10 | Q5: 11 | R5: 12 | S5: 13 | T5: 14 | U5: 15 | V5: 16 | W5: 17 | X5: 18 | Y5: 19 | Z5: 20 | AA5: 21 | AB5: 22 | AC5: 23 | AD5: 24 | AE5: 25
A7: 4x6bits | B7: 24 | E7: Project_Num | F7: 0 | G7: 1 | H7: 2 | I7: 3 | J7: 4 | K7: 5 | L7: 6 | M7: 7 | N7: 8 | O7: 9 | P7: A | Q7: B | R7: C | S7: D | T7: E | U7: F | V7: G | W7: H | X7: I | Y7: J | Z7: K | AA7: L | AB7: M | AC7: N | AD7: O | AE7: P | AF7: Q | AG7: R | AH7: S | AI7: T | AJ7: U | AK7: V | AL7: W | AM7: X | AN7: Y | AO7: Z
F8: 0 | G8: 1 | H8: 2 | I8: 3 | J8: 4 | K8: 5 | L8: 6 | M8: 7 | N8: 8 | O8: 9 | P8: 10 | Q8: 11 | R8: 12 | S8: 13 | T8: 14 | U8: 15 | V8: 16 | W8: 17 | X8: 18 | Y8: 19 | Z8: 20 | AA8: 21 | AB8: 22 | AC8: 23 | AD8: 24 | AE8: 25 | AF8: 26 | AG8: 27 | AH8: 28 | AI8: 29 | AJ8: 30 | AK8: 31 | AL8: 32 | AM8: 33 | AN8: 34 | AO8: 35
A10: 2x4bits | B10: 8 | E10: Project_Version | F10: 0 | G10: 1 | H10: 2 | I10: 3 | J10: 4 | K10: 5 | L10: 6 | M10: 7 | N10: 8 | O10: 9
F11: 0 | G11: 1 | H11: 2 | I11: 3 | J11: 4 | K11: 5 | L11: 6 | M11: 7 | N11: 8 | O11: 9
A13: 4bits | B13: 4 | E13: Config_Match | F13: 0 | G13: 1 | H13: 2 | I13: 3 | J13: 4 | K13: 5 | L13: 6 | M13: 7 | N13: 8 | O13: 9 | P13: A | Q13: B | R13: C | S13: D | T13: E | U13: F
F14: 0 | G14: 1 | H14: 2 | I14: 3 | J14: 4 | K14: 5 | L14: 6 | M14: 7 | N14: 8 | O14: 9 | P14: 10 | Q14: 11 | R14: 12 | S14: 13 | T14: 14 | U14: 15
A16: 4x3bits | B16: 12 | C16: =SUM(B16:B38) -> 110 | D16: CHNOutput | E16: Channel_usage | F16: Not_Used | G16: LB | H16: HB | I16: DRL | J16: TI
F17: 0 | G17: 1 | H17: 2 | I17: 3 | J17: 4 | K17: 7
A19: 2x3bits | B19: 6 | E19: LSD_channel_assignment | F19: Not_Used | G19: Channel1 | H19: Channel2 | I19: Channel3 | J19: Channel4
F20: 0 | G20: 1 | H20: 2 | I20: 3 | J20: 4 | K20: 7
A22: 2x3bits | B22: 6 | E22: LSD_usage | F22: Not_Used | G22: LB | H22: HB | I22: DRL2 | J22: SBL
F23: 0 | G23: 1 | H23: 2 | I23: 3 | J23: 4 | K23: 5 | L23: 6 | M23: 7
A25: 2x7bits | B25: 14 | E25: LSD_Duty_Cycle
F26: 127
B28: 4 | E28: Vf_Maximum_voltage | F28: 0 | G28: 5 | H28: 10 | I28: 15 | J28: 20 | K28: 25 | L28: 30 | M28: 35 | N28: 40 | O28: 45 | P28: 50
F29: 0 | G29: 1 | H29: 2 | I29: 3 | J29: 4 | K29: 5 | L29: 6 | M29: 7 | N29: 8 | O29: 9 | P29: 10 | Q29: 15
A31: 4x4bits | B31: 16 | E31: PWM_Function_Assign | F31: Not_Used | G31: LB | H31: HB | I31: TI/Hazard | J31: DRL1 | K31: DRL2 | L31: Licoln_Lit_Star | M31: Front_Fog | N31: Cornering | O31: SideMarker | P31: StaticBending
F32: 0 | G32: 1 | H32: 2 | I32: 3 | J32: 4 | K32: 5 | L32: 6 | M32: 7 | N32: 8 | O32: 9 | P32: 10 | Q32: 11 | R32: 12 | S32: 13 | T32: 14 | U32: 15
A34: 4x7bits | B34: 28 | E34: PWM_Target_Duty_Cycle
F35: 127
A37: 6x4bits | B37: 24 | E37: Num_LED | F37: Not_Used | G37: 1 | H37: 2 | I37: 3 | J37: 4 | K37: 5 | L37: 6 | M37: 7 | N37: 8 | O37: 9 | P37: 10 | Q37: 11 | R37: 12 | S37: 13 | T37: 14 | U37: 15
F38: 0 | G38: 1 | H38: 2 | I38: 3 | J38: 4 | K38: 5 | L38: 6 | M38: 7 | N38: 8 | O38: 9 | P38: 10 | Q38: 11 | R38: 12 | S38: 13 | T38: 14 | U38: 15
B40: 1 | C40: =SUM(B40:B89) -> 61 | D40: LampCfg | E40: HB_Ramp_method | F40: BCM_LIN | G40: LDM
F41: 0 | G41: 1
A43: 3x4bits | B43: 12 | E43: HB_fade_spd | F43: 100 | G43: 200 | H43: 300 | I43: 400 | J43: 500 | K43: 600 | L43: 800 | M43: 1000 | N43: 1250 | O43: 1500 | P43: 1750 | Q43: 2000 | R43: 2500 | S43: 3000 | T43: 3500 | U43: 4000
F44: 0 | G44: 1 | H44: 2 | I44: 3 | J44: 4 | K44: 5 | L44: 6 | M44: 7 | N44: 8 | O44: 9 | P44: 10 | Q44: 11 | R44: 12 | S44: 13 | T44: 14 | U44: 15
B46: 2 | E46: LDM_internal_standard_ramping | F46: Immediate | G46: Fade_In100ms | H46: Fade_In150ms | I46: Fade_In200ms
F47: 0 | G47: 1 | H47: 2 | I47: 3
B49: 2 | E49: HB&Front_fog | F49: INVALID | G49: Fade_In100ms | H49: Fade_In150ms | I49: Fade_In200ms
F50: 0 | G50: 1 | H50: 2 | I50: 3
E52: 二级联动 | F52: BCM_LIN | G52: Immediate
F53: LDM | G53: Immediate | H53: Fade_In100ms | I53: Fade_In150ms | J53: Fade_In200ms
B55: 4 | E55: TI_delay_time | F55: 0 | G55: 30 | H55: 60 | I55: 90 | J55: 120 | K55: 150 | L55: 180 | M55: 210 | N55: 240 | O55: 270 | P55: 300
F56: 0 | G56: 1 | H56: 2 | I56: 3 | J56: 4 | K56: 5 | L56: 6 | M56: 7 | N56: 8 | O56: 9 | P56: 10 | Q56: 15
B58: 1 | E58: TI_Signal_Source | F58: INVALID | G58: InputCHN3
F59: 0 | G59: 1
B61: 2 | E61: DRL_Signal_Source | F61: INVALID | G61: InputCHN4 | H61: BCM_LIN
F62: 0 | G62: 1 | H62: 2 | I62: 3
B64: 5 | E64: DPL_Trigger_Dutycycle | F64: 10 | G64: 11 | H64: 12 | I64: 13 | J64: 14 | K64: 15 | L64: 16 | M64: 17 | N64: 18 | O64: 19 | P64: 20 | Q64: 21 | R64: 22 | S64: 23 | T64: 24 | U64: 25 | V64: 26 | W64: 27 | X64: 28 | Y64: 29 | Z64: 30 | AA64: 31 | AB64: 32 | AC64: 33 | AD64: 34 | AE64: 35 | AF64: 36 | AG64: 37 | AH64: 38 | AI64: 39 | AJ64: 40 | AK64: 41
F65: 0 | G65: 1 | H65: 2 | I65: 3 | J65: 4 | K65: 5 | L65: 6 | M65: 7 | N65: 8 | O65: 9 | P65: 10 | Q65: 11 | R65: 12 | S65: 13 | T65: 14 | U65: 15 | V65: 16 | W65: 17 | X65: 18 | Y65: 19 | Z65: 20 | AA65: 21 | AB65: 22 | AC65: 23 | AD65: 24 | AE65: 25 | AF65: 26 | AG65: 27 | AH65: 28 | AI65: 29 | AJ65: 30 | AK65: 31
B67: 6 | E67: ParkPos_Intensity | F67: 1 | G67: 2 | H67: 3 | I67: 4 | J67: 5 | K67: 6 | L67: 7 | M67: 8 | N67: 9 | O67: 10 | P67: 11 | Q67: 12 | R67: 13 | S67: 14 | T67: 15 | U67: 16 | V67: 17 | W67: 18 | X67: 19 | Y67: 20 | Z67: 21 | AA67: 22 | AB67: 23 | AC67: 24 | AD67: 25 | AE67: 26 | AF67: 27 | AG67: 28 | AH67: 29 | AI67: 30 | AJ67: 31 | AK67: 32 | AL67: 33 | AM67: 34 | AN67: 35 | AO67: 36 | AP67: 37 | AQ67: 38 | AR67: 39 | AS67: 40 | AT67: 41 | AU67: 42 | AV67: 43 | AW67: 44 | AX67: 45 | AY67: 46 | AZ67: 47 | BA67: 48 | BB67: 49 | BC67: 50
F68: 0 | G68: 1 | H68: 2 | I68: 3 | J68: 4 | K68: 5 | L68: 6 | M68: 7 | N68: 8 | O68: 9 | P68: 10 | Q68: 11 | R68: 12 | S68: 13 | T68: 14 | U68: 15 | V68: 16 | W68: 17 | X68: 18 | Y68: 19 | Z68: 20 | AA68: 21 | AB68: 22 | AC68: 23 | AD68: 24 | AE68: 25 | AF68: 26 | AG68: 27 | AH68: 28 | AI68: 29 | AJ68: 30 | AK68: 31 | AL68: 32 | AM68: 33 | AN68: 34 | AO68: 35 | AP68: 36 | AQ68: 37 | AR68: 38 | AS68: 39 | AT68: 40 | AU68: 41 | AV68: 42 | AW68: 43 | AX68: 44 | AY68: 45 | AZ68: 46 | BA68: 47 | BB68: 48 | BC68: 49 | BD68: 63
B70: 2 | E70: DPL_LB_Outage | F70: No_Impact | G70: DRLtoPL_PLkeep | H70: DRLkeep_PLOFF
F71: 0 | G71: 1 | H71: 2 | I71: 3
B73: 1 | E73: DRL_Combined_TI | F73: TI_restrain_DRL/PO | G73: TI_interact_with_DRL/PO
F74: 0 | G74: 1
B76: 2 | E76: DRL_TI_Control | F76: TI_ON,DRL1Off/TI_OFF,DRL1ON | G76: TI_ON,DRL1toPL1/TI_OFF,PL1toDRL1 | H76: TI_has_no_impact_on_DRL1/PO1 | I76: TI_active,turn_off_DRL1/PO1 | J76: TI_active,dim_DRL1toPO1 | K76: TI_active,turn_off_DRL1,no_impact_on | L76: TI_active,turnoff_DRL1/2orPO2,no_impact_on_PO1 | M76: TI_active,turnoff_DRL2orPO2,no_impact_on_DRL1orPO1 | N76: TI_active,dim_DRL2toPO2,no_impact_on_DRL1orPO1 | O76: TI_active,turnoff_DRL2,no_impact_on_PO2/DRL1/PO1
F77: 0 | G77: 1 | H77: 0 | I77: 1 | J77: 2 | K77: 3 | L77: 0 | M77: 1 | N77: 2 | O77: 3
B79: 4 | E79: DRL_activation_time_after_deact | F79: 0 | G79: 100 | H79: 200 | I79: 300 | J79: 400 | K79: 500 | L79: 600 | M79: 700 | N79: 800 | O79: 900 | P79: 1000
F80: 0 | G80: 1 | H80: 2 | I80: 3 | J80: 4 | K80: 5 | L80: 6 | M80: 7 | N80: 8 | O80: 9 | P80: 10 | Q80: 15
B82: 1 | E82: DRL_ON_FTP | F82: No_Impact | G82: DRL_to_PL
F83: 0 | G83: 1
B85: 8 | E85: SBL_Trigger_SteAngle_Thershold
B88: 8 | E88: SBL_Max_Speed_Thershold
B91: 2 | C91: =SUM(B91:B104) -> 11 | D91: FAN | E91: FanRunTime_OnPwr | F91: 0 | G91: 20 | H91: 40 | I91: 60
F92: 0 | G92: 1 | H92: 2 | I92: 3
B94: 2 | E94: FAN_Activation_Trigger | F94: No_Fan | G94: Ignition_On | H94: LB/HB_Active | I94: Over_set_temp
F95: 0 | G95: 1 | H95: 2 | I95: 3
B97: 2 | E97: FAN_Activation_NTC | F97: NTC1 | G97: NTC2 | H97: NTC3 | I97: NTC4
F98: 0 | G98: 1 | H98: 2 | I98: 3
B100: 4 | E100: Fan_Activation_Temp | F100: 50 | G100: 55 | H100: 60 | I100: 65 | J100: 70 | K100: 75 | L100: 80 | M100: 85 | N100: 90 | O100: 95 | P100: 100
F101: 0 | G101: 1 | H101: 2 | I101: 3 | J101: 4 | K101: 5 | L101: 6 | M101: 7 | N101: 8 | O101: 9 | P101: 10 | Q101: 15
B103: 1 | E103: Fan_Outage_Detect | F103: DISABLE | G103: ENABLE
F104: 0 | G104: 1
A106: 4X8X1bit | B106: 32 | C106: =SUM(B106:B113) -> 264 | D106: BIN | E106: BIN_Param_Cfg | F106: 0 | G106: 1
F107: 0 | G107: 1
A109: 4x2bits | B109: 8 | E109: Channel_BIN_Source | F109: BIN_Channel1 | G109: BIN_Channel2 | H109: BIN_Channel3 | I109: BIN_Channel4
F110: 0 | G110: 1 | H110: 2 | I110: 3
A112: 4x7x8bits | B112: 224 | E112: CHN_Current | F112: 100 | G112: 110 | H112: 120 | I112: 130 | J112: 140 | K112: 150 | L112: 160 | M112: 170 | N112: 180 | O112: 190 | P112: 200 | Q112: 210 | R112: 220 | S112: 230 | T112: 240 | U112: 250 | V112: 260 | W112: 270 | X112: 280 | Y112: 290 | Z112: 300 | AA112: 310 | AB112: 320 | AC112: 330 | AD112: 340 | AE112: 350 | AF112: 360 | AG112: 370 | AH112: 380 | AI112: 390 | AJ112: 400 | AK112: 410 | AL112: 420 | AM112: 430 | AN112: 440 | AO112: 450 | AP112: 460 | AQ112: 470 | AR112: 480 | AS112: 490 | AT112: 500 | AU112: 510 | AV112: 520 | AW112: 530 | AX112: 540 | AY112: 550 | AZ112: 560 | BA112: 570 | BB112: 580 | BC112: 590 | BD112: 600 | BE112: 610 | BF112: 620 | BG112: 630 | BH112: 640 | BI112: 650 | BJ112: 660 | BK112: 670 | BL112: 680 | BM112: 690 | BN112: 700 | BO112: 710 | BP112: 720 | BQ112: 730 | BR112: 740 | BS112: 750 | BT112: 760 | BU112: 770 | BV112: 780 | BW112: 790 | BX112: 800 | BY112: 810 | BZ112: 820 | CA112: 830 | CB112: 840 | CC112: 850 | CD112: 860 | CE112: 870 | CF112: 880 | CG112: 890 | CH112: 900 | CI112: 910 | CJ112: 920 | CK112: 930 | CL112: 940 | CM112: 950 | CN112: 960 | CO112: 970 | CP112: 980 | CQ112: 990 | CR112: 1000 | CS112: 1010 | CT112: 1020 | CU112: 1030 | CV112: 1040 | CW112: 1050 | CX112: 1060 | CY112: 1070 | CZ112: 1080 | DA112: 1090 | DB112: 1100 | DC112: 1110 | DD112: 1120 | DE112: 1130 | DF112: 1140 | DG112: 1150 | DH112: 1160 | DI112: 1170 | DJ112: 1180 | DK112: 1190 | DL112: 1200 | DM112: 1210 | DN112: 1220 | DO112: 1230 | DP112: 1240 | DQ112: 1250 | DR112: 1260 | DS112: 1270 | DT112: 1280 | DU112: 1290 | DV112: 1300 | DW112: 1310 | DX112: 1320 | DY112: 1330 | DZ112: 1340 | EA112: 1350 | EB112: 1360 | EC112: 1370 | ED112: 1380 | EE112: 1390 | EF112: 1400 | EG112: 1410 | EH112: 1420 | EI112: 1430 | EJ112: 1440 | EK112: 1450 | EL112: 1460 | EM112: 1470 | EN112: 1480 | EO112: 1490 | EP112: 1500
F113: 0 | G113: 1 | H113: 2 | I113: 3 | J113: 4 | K113: 5 | L113: 6 | M113: 7 | N113: 8 | O113: 9 | P113: 10 | Q113: 11 | R113: 12 | S113: 13 | T113: 14 | U113: 15 | V113: 16 | W113: 17 | X113: 18 | Y113: 19 | Z113: 20 | AA113: 21 | AB113: 22 | AC113: 23 | AD113: 24 | AE113: 25 | AF113: 26 | AG113: 27 | AH113: 28 | AI113: 29 | AJ113: 30 | AK113: 31 | AL113: 32 | AM113: 33 | AN113: 34 | AO113: 35 | AP113: 36 | AQ113: 37 | AR113: 38 | AS113: 39 | AT113: 40 | AU113: 41 | AV113: 42 | AW113: 43 | AX113: 44 | AY113: 45 | AZ113: 46 | BA113: 47 | BB113: 48 | BC113: 49 | BD113: 50 | BE113: 51 | BF113: 52 | BG113: 53 | BH113: 54 | BI113: 55 | BJ113: 56 | BK113: 57 | BL113: 58 | BM113: 59 | BN113: 60 | BO113: 61 | BP113: 62 | BQ113: 63 | BR113: 64 | BS113: 65 | BT113: 66 | BU113: 67 | BV113: 68 | BW113: 69 | BX113: 70 | BY113: 71 | BZ113: 72 | CA113: 73 | CB113: 74 | CC113: 75 | CD113: 76 | CE113: 77 | CF113: 78 | CG113: 79 | CH113: 80 | CI113: 81 | CJ113: 82 | CK113: 83 | CL113: 84 | CM113: 85 | CN113: 86 | CO113: 87 | CP113: 88 | CQ113: 89 | CR113: 90 | CS113: 91 | CT113: 92 | CU113: 93 | CV113: 94 | CW113: 95 | CX113: 96 | CY113: 97 | CZ113: 98 | DA113: 99 | DB113: 100 | DC113: 101 | DD113: 102 | DE113: 103 | DF113: 104 | DG113: 105 | DH113: 106 | DI113: 107 | DJ113: 108 | DK113: 109 | DL113: 110 | DM113: 111 | DN113: 112 | DO113: 113 | DP113: 114 | DQ113: 115 | DR113: 116 | DS113: 117 | DT113: 118 | DU113: 119 | DV113: 120 | DW113: 121 | DX113: 122 | DY113: 123 | DZ113: 124 | EA113: 125 | EB113: 126 | EC113: 127 | ED113: 128 | EE113: 129 | EF113: 130 | EG113: 131 | EH113: 132 | EI113: 133 | EJ113: 134 | EK113: 135 | EL113: 136 | EM113: 137 | EN113: 138 | EO113: 139 | EP113: 140
B115: 1 | C115: =SUM(B115:B149) -> 134 | D115: NTC | E115: NTC_R0 | F115: 47 | G115: 10
F116: 0 | G116: 1
B118: 9 | E118: NTC_B_Constant | F118: 2800 | G118: 2805 | H118: 2810 | I118: 2815 | J118: 2820 | K118: 2825 | L118: 2830 | M118: 2835 | N118: 2840 | O118: 2845 | P118: 2850 | Q118: 2855 | R118: 2860 | S118: 2865 | T118: 2870 | U118: 2875 | V118: 2880 | W118: 2885 | X118: 2890 | Y118: 2895 | Z118: 2900 | AA118: 2905 | AB118: 2910 | AC118: 2915 | AD118: 2920 | AE118: 2925 | AF118: 2930 | AG118: 2935 | AH118: 2940 | AI118: 2945 | AJ118: 2950 | AK118: 2955 | AL118: 2960 | AM118: 2965 | AN118: 2970 | AO118: 2975 | AP118: 2980 | AQ118: 2985 | AR118: 2990 | AS118: 2995 | AT118: 3000 | AU118: 3005 | AV118: 3010 | AW118: 3015 | AX118: 3020 | AY118: 3025 | AZ118: 3030 | BA118: 3035 | BB118: 3040 | BC118: 3045 | BD118: 3050 | BE118: 3055 | BF118: 3060 | BG118: 3065 | BH118: 3070 | BI118: 3075 | BJ118: 3080 | BK118: 3085 | BL118: 3090 | BM118: 3095 | BN118: 3100 | BO118: 3105 | BP118: 3110 | BQ118: 3115 | BR118: 3120 | BS118: 3125 | BT118: 3130 | BU118: 3135 | BV118: 3140 | BW118: 3145 | BX118: 3150 | BY118: 3155 | BZ118: 3160 | CA118: 3165 | CB118: 3170 | CC118: 3175 | CD118: 3180 | CE118: 3185 | CF118: 3190 | CG118: 3195 | CH118: 3200 | CI118: 3205 | CJ118: 3210 | CK118: 3215 | CL118: 3220 | CM118: 3225 | CN118: 3230 | CO118: 3235 | CP118: 3240 | CQ118: 3245 | CR118: 3250 | CS118: 3255 | CT118: 3260 | CU118: 3265 | CV118: 3270 | CW118: 3275 | CX118: 3280 | CY118: 3285 | CZ118: 3290 | DA118: 3295 | DB118: 3300 | DC118: 3305 | DD118: 3310 | DE118: 3315 | DF118: 3320 | DG118: 3325 | DH118: 3330 | DI118: 3335 | DJ118: 3340 | DK118: 3345 | DL118: 3350 | DM118: 3355 | DN118: 3360 | DO118: 3365 | DP118: 3370 | DQ118: 3375 | DR118: 3380 | DS118: 3385 | DT118: 3390 | DU118: 3395 | DV118: 3400 | DW118: 3405 | DX118: 3410 | DY118: 3415 | DZ118: 3420 | EA118: 3425 | EB118: 3430 | EC118: 3435 | ED118: 3440 | EE118: 3445 | EF118: 3450 | EG118: 3455 | EH118: 3460 | EI118: 3465 | EJ118: 3470 | EK118: 3475 | EL118: 3480 | EM118: 3485 | EN118: 3490 | EO118: 3495 | EP118: 3500 | EQ118: 3505 | ER118: 3510 | ES118: 3515 | ET118: 3520 | EU118: 3525 | EV118: 3530 | EW118: 3535 | EX118: 3540 | EY118: 3545 | EZ118: 3550 | FA118: 3555 | FB118: 3560 | FC118: 3565 | FD118: 3570 | FE118: 3575 | FF118: 3580 | FG118: 3585 | FH118: 3590 | FI118: 3595 | FJ118: 3600 | FK118: 3605 | FL118: 3610 | FM118: 3615 | FN118: 3620 | FO118: 3625 | FP118: 3630 | FQ118: 3635 | FR118: 3640 | FS118: 3645 | FT118: 3650 | FU118: 3655 | FV118: 3660 | FW118: 3665 | FX118: 3670 | FY118: 3675 | FZ118: 3680 | GA118: 3685 | GB118: 3690 | GC118: 3695 | GD118: 3700 | GE118: 3705 | GF118: 3710 | GG118: 3715 | GH118: 3720 | GI118: 3725 | GJ118: 3730 | GK118: 3735 | GL118: 3740 | GM118: 3745 | GN118: 3750 | GO118: 3755 | GP118: 3760 | GQ118: 3765 | GR118: 3770 | GS118: 3775 | GT118: 3780 | GU118: 3785 | GV118: 3790 | GW118: 3795 | GX118: 3800 | GY118: 3805 | GZ118: 3810 | HA118: 3815 | HB118: 3820 | HC118: 3825 | HD118: 3830 | HE118: 3835 | HF118: 3840 | HG118: 3845 | HH118: 3850 | HI118: 3855 | HJ118: 3860 | HK118: 3865 | HL118: 3870 | HM118: 3875 | HN118: 3880 | HO118: 3885 | HP118: 3890 | HQ118: 3895 | HR118: 3900 | HS118: 3905 | HT118: 3910 | HU118: 3915 | HV118: 3920 | HW118: 3925 | HX118: 3930 | HY118: 3935 | HZ118: 3940 | IA118: 3945 | IB118: 3950 | IC118: 3955 | ID118: 3960 | IE118: 3965 | IF118: 3970 | IG118: 3975 | IH118: 3980 | II118: 3985 | IJ118: 3990 | IK118: 3995 | IL118: 4000 | IM118: 4005 | IN118: 4010 | IO118: 4015 | IP118: 4020 | IQ118: 4025 | IR118: 4030 | IS118: 4035 | IT118: 4040 | IU118: 4045 | IV118: 4050 | IW118: 4055 | IX118: 4060 | IY118: 4065 | IZ118: 4070 | JA118: 4075 | JB118: 4080 | JC118: 4085 | JD118: 4090 | JE118: 4095 | JF118: 4100 | JG118: 4105 | JH118: 4110 | JI118: 4115 | JJ118: 4120 | JK118: 4125 | JL118: 4130 | JM118: 4135 | JN118: 4140 | JO118: 4145 | JP118: 4150 | JQ118: 4155 | JR118: 4160 | JS118: 4165 | JT118: 4170 | JU118: 4175 | JV118: 4180 | JW118: 4185 | JX118: 4190 | JY118: 4195 | JZ118: 4200 | KA118: 4205 | KB118: 4210 | KC118: 4215 | KD118: 4220 | KE118: 4225 | KF118: 4230 | KG118: 4235 | KH118: 4240 | KI118: 4245 | KJ118: 4250 | KK118: 4255 | KL118: 4260 | KM118: 4265 | KN118: 4270 | KO118: 4275 | KP118: 4280 | KQ118: 4285 | KR118: 4290 | KS118: 4295 | KT118: 4300 | KU118: 4305 | KV118: 4310 | KW118: 4315 | KX118: 4320 | KY118: 4325 | KZ118: 4330 | LA118: 4335 | LB118: 4340 | LC118: 4345 | LD118: 4350 | LE118: 4355 | LF118: 4360 | LG118: 4365 | LH118: 4370 | LI118: 4375 | LJ118: 4380 | LK118: 4385 | LL118: 4390 | LM118: 4395 | LN118: 4400 | LO118: 4405 | LP118: 4410 | LQ118: 4415 | LR118: 4420 | LS118: 4425 | LT118: 4430 | LU118: 4435 | LV118: 4440 | LW118: 4445 | LX118: 4450 | LY118: 4455 | LZ118: 4460 | MA118: 4465 | MB118: 4470 | MC118: 4475 | MD118: 4480 | ME118: 4485 | MF118: 4490 | MG118: 4495 | MH118: 4500
F119: 0 | G119: 1 | H119: 2 | I119: 3 | J119: 4 | K119: 5 | L119: 6 | M119: 7 | N119: 8 | O119: 9 | P119: 10 | Q119: 11 | R119: 12 | S119: 13 | T119: 14 | U119: 15 | V119: 16 | W119: 17 | X119: 18 | Y119: 19 | Z119: 20 | AA119: 21 | AB119: 22 | AC119: 23 | AD119: 24 | AE119: 25 | AF119: 26 | AG119: 27 | AH119: 28 | AI119: 29 | AJ119: 30 | AK119: 31 | AL119: 32 | AM119: 33 | AN119: 34 | AO119: 35 | AP119: 36 | AQ119: 37 | AR119: 38 | AS119: 39 | AT119: 40 | AU119: 41 | AV119: 42 | AW119: 43 | AX119: 44 | AY119: 45 | AZ119: 46 | BA119: 47 | BB119: 48 | BC119: 49 | BD119: 50 | BE119: 51 | BF119: 52 | BG119: 53 | BH119: 54 | BI119: 55 | BJ119: 56 | BK119: 57 | BL119: 58 | BM119: 59 | BN119: 60 | BO119: 61 | BP119: 62 | BQ119: 63 | BR119: 64 | BS119: 65 | BT119: 66 | BU119: 67 | BV119: 68 | BW119: 69 | BX119: 70 | BY119: 71 | BZ119: 72 | CA119: 73 | CB119: 74 | CC119: 75 | CD119: 76 | CE119: 77 | CF119: 78 | CG119: 79 | CH119: 80 | CI119: 81 | CJ119: 82 | CK119: 83 | CL119: 84 | CM119: 85 | CN119: 86 | CO119: 87 | CP119: 88 | CQ119: 89 | CR119: 90 | CS119: 91 | CT119: 92 | CU119: 93 | CV119: 94 | CW119: 95 | CX119: 96 | CY119: 97 | CZ119: 98 | DA119: 99 | DB119: 100 | DC119: 101 | DD119: 102 | DE119: 103 | DF119: 104 | DG119: 105 | DH119: 106 | DI119: 107 | DJ119: 108 | DK119: 109 | DL119: 110 | DM119: 111 | DN119: 112 | DO119: 113 | DP119: 114 | DQ119: 115 | DR119: 116 | DS119: 117 | DT119: 118 | DU119: 119 | DV119: 120 | DW119: 121 | DX119: 122 | DY119: 123 | DZ119: 124 | EA119: 125 | EB119: 126 | EC119: 127 | ED119: 128 | EE119: 129 | EF119: 130 | EG119: 131 | EH119: 132 | EI119: 133 | EJ119: 134 | EK119: 135 | EL119: 136 | EM119: 137 | EN119: 138 | EO119: 139 | EP119: 140 | EQ119: 141 | ER119: 142 | ES119: 143 | ET119: 144 | EU119: 145 | EV119: 146 | EW119: 147 | EX119: 148 | EY119: 149 | EZ119: 150 | FA119: 151 | FB119: 152 | FC119: 153 | FD119: 154 | FE119: 155 | FF119: 156 | FG119: 157 | FH119: 158 | FI119: 159 | FJ119: 160 | FK119: 161 | FL119: 162 | FM119: 163 | FN119: 164 | FO119: 165 | FP119: 166 | FQ119: 167 | FR119: 168 | FS119: 169 | FT119: 170 | FU119: 171 | FV119: 172 | FW119: 173 | FX119: 174 | FY119: 175 | FZ119: 176 | GA119: 177 | GB119: 178 | GC119: 179 | GD119: 180 | GE119: 181 | GF119: 182 | GG119: 183 | GH119: 184 | GI119: 185 | GJ119: 186 | GK119: 187 | GL119: 188 | GM119: 189 | GN119: 190 | GO119: 191 | GP119: 192 | GQ119: 193 | GR119: 194 | GS119: 195 | GT119: 196 | GU119: 197 | GV119: 198 | GW119: 199 | GX119: 200 | GY119: 201 | GZ119: 202 | HA119: 203 | HB119: 204 | HC119: 205 | HD119: 206 | HE119: 207 | HF119: 208 | HG119: 209 | HH119: 210 | HI119: 211 | HJ119: 212 | HK119: 213 | HL119: 214 | HM119: 215 | HN119: 216 | HO119: 217 | HP119: 218 | HQ119: 219 | HR119: 220 | HS119: 221 | HT119: 222 | HU119: 223 | HV119: 224 | HW119: 225 | HX119: 226 | HY119: 227 | HZ119: 228 | IA119: 229 | IB119: 230 | IC119: 231 | ID119: 232 | IE119: 233 | IF119: 234 | IG119: 235 | IH119: 236 | II119: 237 | IJ119: 238 | IK119: 239 | IL119: 240 | IM119: 241 | IN119: 242 | IO119: 243 | IP119: 244 | IQ119: 245 | IR119: 246 | IS119: 247 | IT119: 248 | IU119: 249 | IV119: 250 | IW119: 251 | IX119: 252 | IY119: 253 | IZ119: 254 | JA119: 255 | JB119: 256 | JC119: 257 | JD119: 258 | JE119: 259 | JF119: 260 | JG119: 261 | JH119: 262 | JI119: 263 | JJ119: 264 | JK119: 265 | JL119: 266 | JM119: 267 | JN119: 268 | JO119: 269 | JP119: 270 | JQ119: 271 | JR119: 272 | JS119: 273 | JT119: 274 | JU119: 275 | JV119: 276 | JW119: 277 | JX119: 278 | JY119: 279 | JZ119: 280 | KA119: 281 | KB119: 282 | KC119: 283 | KD119: 284 | KE119: 285 | KF119: 286 | KG119: 287 | KH119: 288 | KI119: 289 | KJ119: 290 | KK119: 291 | KL119: 292 | KM119: 293 | KN119: 294 | KO119: 295 | KP119: 296 | KQ119: 297 | KR119: 298 | KS119: 299 | KT119: 300 | KU119: 301 | KV119: 302 | KW119: 303 | KX119: 304 | KY119: 305 | KZ119: 306 | LA119: 307 | LB119: 308 | LC119: 309 | LD119: 310 | LE119: 311 | LF119: 312 | LG119: 313 | LH119: 314 | LI119: 315 | LJ119: 316 | LK119: 317 | LL119: 318 | LM119: 319 | LN119: 320 | LO119: 321 | LP119: 322 | LQ119: 323 | LR119: 324 | LS119: 325 | LT119: 326 | LU119: 327 | LV119: 328 | LW119: 329 | LX119: 330 | LY119: 331 | LZ119: 332 | MA119: 333 | MB119: 334 | MC119: 335 | MD119: 336 | ME119: 337 | MF119: 338 | MG119: 339 | MH119: 340 | MI119: 511
A121: 4x3bits | B121: 12 | E121: Channel_NTC_Source | F121: Not_Used | G121: NTC1 | H121: NTC2 | I121: NTC3 | J121: NTC4
F122: 0 | G122: 1 | H122: 2 | I122: 3 | J122: 4 | K122: 7
A124: 4x3bits | B124: 12 | E124: CHx_NTC_TempDerate2 | F124: -5 | G124: 0 | H124: 5 | I124: 10 | J124: 15 | K124: 20 | L124: 25 | M124: 30
F125: 0 | G125: 1 | H125: 2 | I125: 3 | J125: 4 | K125: 5 | L125: 6 | M125: 7
A127: 4x3bits | B127: 12 | E127: CHx_NTC_TempDerate3 | F127: 80 | G127: 85 | H127: 90 | I127: 95 | J127: 100 | K127: 105 | L127: 110 | M127: 115
F128: 0 | G128: 1 | H128: 2 | I128: 3 | J128: 4 | K128: 5 | L128: 6 | M128: 7
A130: 4x3bits | B130: 12 | E130: CHx_NTC_TempDerate4 | F130: 90 | G130: 95 | H130: 100 | I130: 105 | J130: 110 | K130: 115 | L130: 120 | M130: 125
F131: 0 | G131: 1 | H131: 2 | I131: 3 | J131: 4 | K131: 5 | L131: 6 | M131: 7
A133: 4x3bits | B133: 12 | E133: CHx_NTC_TempDerate5 | F133: 100 | G133: 105 | H133: 110 | I133: 115 | J133: 120 | K133: 125 | L133: 130 | M133: 135
F134: 0 | G134: 1 | H134: 2 | I134: 3 | J134: 4 | K134: 5 | L134: 6 | M134: 7
A136: 4x2bits | B136: 8 | E136: CHx_NTC_BrightDerate1 | F136: 0 | G136: 5 | H136: 10 | I136: 15
F137: 0 | G137: 1 | H137: 2 | I137: 3
A139: 4x2bits | B139: 8 | E139: CHx_NTC_BrightDerate2 | F139: 0 | G139: 5 | H139: 10 | I139: 15
F140: 0 | G140: 1 | H140: 2 | I140: 3
A142: 4x3bits | B142: 12 | E142: CHx_NTC_BrightDerate3 | F142: 0 | G142: 5 | H142: 10 | I142: 15 | J142: 20 | K142: 25 | L142: 30 | M142: 35
F143: 0 | G143: 1 | H143: 2 | I143: 3 | J143: 4 | K143: 5 | L143: 6 | M143: 7
A145: 4x4bits | B145: 16 | E145: CHx_NTC_BrightDerate4 | F145: 0 | G145: 5 | H145: 10 | I145: 15 | J145: 20 | K145: 25 | L145: 30 | M145: 35 | N145: 40 | O145: 45 | P145: 50 | Q145: 55 | R145: 60 | S145: 65 | T145: 70 | U145: 75
F146: 0 | G146: 1 | H146: 2 | I146: 3 | J146: 4 | K146: 5 | L146: 6 | M146: 7 | N146: 8 | O146: 9 | P146: 10 | Q146: 11 | R146: 12 | S146: 13 | T146: 14 | U146: 15
A148: 4x5bits | B148: 20 | E148: CHx_NTC_BrightDerate5 | F148: 0 | G148: 5 | H148: 10 | I148: 15 | J148: 20 | K148: 25 | L148: 30 | M148: 35 | N148: 40 | O148: 45 | P148: 50 | Q148: 55 | R148: 60 | S148: 65 | T148: 70 | U148: 75 | V148: 80 | W148: 85 | X148: 90 | Y148: 95 | Z148: 100
F149: 0 | G149: 1 | H149: 2 | I149: 3 | J149: 4 | K149: 5 | L149: 6 | M149: 7 | N149: 8 | O149: 9 | P149: 10 | Q149: 11 | R149: 12 | S149: 13 | T149: 14 | U149: 15 | V149: 16 | W149: 17 | X149: 18 | Y149: 19 | Z149: 20 | AA149: 31
B151: 7 | C151: =SUM(B151:B164) -> 127 | D151: Animation | E151: DRL_Embrace_Intensity
F152: 127
B154: 16 | E154: DRL_Curve_Duration_Welcome/Farewell | F154: 0 | G154: 40 | H154: 80 | I154: 120 | J154: 160 | K154: 200 | L154: 240 | M154: 280 | N154: 320 | O154: 360 | P154: 400 | Q154: 440 | R154: 480 | S154: 520 | T154: 560 | U154: 600 | V154: 640 | W154: 680 | X154: 720 | Y154: 760 | Z154: 800 | AA154: 840 | AB154: 880 | AC154: 920 | AD154: 960 | AE154: 1000 | AF154: 1040 | AG154: 1080 | AH154: 1120 | AI154: 1160 | AJ154: 1200 | AK154: 1240 | AL154: 1280 | AM154: 1320 | AN154: 1360 | AO154: 1400 | AP154: 1440 | AQ154: 1480 | AR154: 1520 | AS154: 1560 | AT154: 1600 | AU154: 1640 | AV154: 1680 | AW154: 1720 | AX154: 1760 | AY154: 1800 | AZ154: 1840 | BA154: 1880 | BB154: 1920 | BC154: 1960 | BD154: 2000 | BE154: 2040 | BF154: 2080 | BG154: 2120 | BH154: 2160 | BI154: 2200 | BJ154: 2240 | BK154: 2280 | BL154: 2320 | BM154: 2360 | BN154: 2400 | BO154: 2440 | BP154: 2480 | BQ154: 2520 | BR154: 2560 | BS154: 2600 | BT154: 2640 | BU154: 2680 | BV154: 2720 | BW154: 2760 | BX154: 2800 | BY154: 2840 | BZ154: 2880 | CA154: 2920 | CB154: 2960 | CC154: 3000 | CD154: 3040 | CE154: 3080 | CF154: 3120 | CG154: 3160 | CH154: 3200 | CI154: 3240 | CJ154: 3280 | CK154: 3320 | CL154: 3360 | CM154: 3400 | CN154: 3440 | CO154: 3480 | CP154: 3520 | CQ154: 3560 | CR154: 3600 | CS154: 3640 | CT154: 3680 | CU154: 3720 | CV154: 3760 | CW154: 3800 | CX154: 3840 | CY154: 3880 | CZ154: 3920 | DA154: 3960 | DB154: 4000 | DC154: 4040 | DD154: 4080 | DE154: 4120 | DF154: 4160 | DG154: 4200 | DH154: 4240 | DI154: 4280 | DJ154: 4320 | DK154: 4360 | DL154: 4400 | DM154: 4440 | DN154: 4480 | DO154: 4520 | DP154: 4560 | DQ154: 4600 | DR154: 4640 | DS154: 4680 | DT154: 4720 | DU154: 4760 | DV154: 4800 | DW154: 4840 | DX154: 4880 | DY154: 4920 | DZ154: 4960 | EA154: 5000 | EB154: 5040 | EC154: 5080 | ED154: 5120 | EE154: 5160 | EF154: 5200 | EG154: 5240 | EH154: 5280 | EI154: 5320 | EJ154: 5360 | EK154: 5400 | EL154: 5440 | EM154: 5480 | EN154: 5520 | EO154: 5560 | EP154: 5600 | EQ154: 5640 | ER154: 5680 | ES154: 5720 | ET154: 5760 | EU154: 5800 | EV154: 5840 | EW154: 5880 | EX154: 5920 | EY154: 5960 | EZ154: 6000 | FA154: 6040 | FB154: 6080 | FC154: 6120 | FD154: 6160 | FE154: 6200 | FF154: 6240 | FG154: 6280 | FH154: 6320 | FI154: 6360 | FJ154: 6400 | FK154: 6440 | FL154: 6480 | FM154: 6520 | FN154: 6560 | FO154: 6600 | FP154: 6640 | FQ154: 6680 | FR154: 6720 | FS154: 6760 | FT154: 6800 | FU154: 6840 | FV154: 6880 | FW154: 6920 | FX154: 6960 | FY154: 7000 | FZ154: 7040 | GA154: 7080 | GB154: 7120 | GC154: 7160 | GD154: 7200 | GE154: 7240 | GF154: 7280 | GG154: 7320 | GH154: 7360 | GI154: 7400 | GJ154: 7440 | GK154: 7480 | GL154: 7520 | GM154: 7560 | GN154: 7600 | GO154: 7640 | GP154: 7680 | GQ154: 7720 | GR154: 7760 | GS154: 7800 | GT154: 7840 | GU154: 7880 | GV154: 7920 | GW154: 7960 | GX154: 8000 | GY154: 8040 | GZ154: 8080 | HA154: 8120 | HB154: 8160 | HC154: 8200 | HD154: 8240 | HE154: 8280 | HF154: 8320 | HG154: 8360 | HH154: 8400 | HI154: 8440 | HJ154: 8480 | HK154: 8520 | HL154: 8560 | HM154: 8600 | HN154: 8640 | HO154: 8680 | HP154: 8720 | HQ154: 8760 | HR154: 8800 | HS154: 8840 | HT154: 8880 | HU154: 8920 | HV154: 8960 | HW154: 9000 | HX154: 9040 | HY154: 9080 | HZ154: 9120 | IA154: 9160 | IB154: 9200 | IC154: 9240 | ID154: 9280 | IE154: 9320 | IF154: 9360 | IG154: 9400 | IH154: 9440 | II154: 9480 | IJ154: 9520 | IK154: 9560 | IL154: 9600 | IM154: 9640 | IN154: 9680 | IO154: 9720 | IP154: 9760 | IQ154: 9800 | IR154: 9840 | IS154: 9880 | IT154: 9920 | IU154: 9960 | IV154: 10000
F155: 0 | G155: 1 | H155: 2 | I155: 3 | J155: 4 | K155: 5 | L155: 6 | M155: 7 | N155: 8 | O155: 9 | P155: 10 | Q155: 11 | R155: 12 | S155: 13 | T155: 14 | U155: 15 | V155: 16 | W155: 17 | X155: 18 | Y155: 19 | Z155: 20 | AA155: 21 | AB155: 22 | AC155: 23 | AD155: 24 | AE155: 25 | AF155: 26 | AG155: 27 | AH155: 28 | AI155: 29 | AJ155: 30 | AK155: 31 | AL155: 32 | AM155: 33 | AN155: 34 | AO155: 35 | AP155: 36 | AQ155: 37 | AR155: 38 | AS155: 39 | AT155: 40 | AU155: 41 | AV155: 42 | AW155: 43 | AX155: 44 | AY155: 45 | AZ155: 46 | BA155: 47 | BB155: 48 | BC155: 49 | BD155: 50 | BE155: 51 | BF155: 52 | BG155: 53 | BH155: 54 | BI155: 55 | BJ155: 56 | BK155: 57 | BL155: 58 | BM155: 59 | BN155: 60 | BO155: 61 | BP155: 62 | BQ155: 63 | BR155: 64 | BS155: 65 | BT155: 66 | BU155: 67 | BV155: 68 | BW155: 69 | BX155: 70 | BY155: 71 | BZ155: 72 | CA155: 73 | CB155: 74 | CC155: 75 | CD155: 76 | CE155: 77 | CF155: 78 | CG155: 79 | CH155: 80 | CI155: 81 | CJ155: 82 | CK155: 83 | CL155: 84 | CM155: 85 | CN155: 86 | CO155: 87 | CP155: 88 | CQ155: 89 | CR155: 90 | CS155: 91 | CT155: 92 | CU155: 93 | CV155: 94 | CW155: 95 | CX155: 96 | CY155: 97 | CZ155: 98 | DA155: 99 | DB155: 100 | DC155: 101 | DD155: 102 | DE155: 103 | DF155: 104 | DG155: 105 | DH155: 106 | DI155: 107 | DJ155: 108 | DK155: 109 | DL155: 110 | DM155: 111 | DN155: 112 | DO155: 113 | DP155: 114 | DQ155: 115 | DR155: 116 | DS155: 117 | DT155: 118 | DU155: 119 | DV155: 120 | DW155: 121 | DX155: 122 | DY155: 123 | DZ155: 124 | EA155: 125 | EB155: 126 | EC155: 127 | ED155: 128 | EE155: 129 | EF155: 130 | EG155: 131 | EH155: 132 | EI155: 133 | EJ155: 134 | EK155: 135 | EL155: 136 | EM155: 137 | EN155: 138 | EO155: 139 | EP155: 140 | EQ155: 141 | ER155: 142 | ES155: 143 | ET155: 144 | EU155: 145 | EV155: 146 | EW155: 147 | EX155: 148 | EY155: 149 | EZ155: 150 | FA155: 151 | FB155: 152 | FC155: 153 | FD155: 154 | FE155: 155 | FF155: 156 | FG155: 157 | FH155: 158 | FI155: 159 | FJ155: 160 | FK155: 161 | FL155: 162 | FM155: 163 | FN155: 164 | FO155: 165 | FP155: 166 | FQ155: 167 | FR155: 168 | FS155: 169 | FT155: 170 | FU155: 171 | FV155: 172 | FW155: 173 | FX155: 174 | FY155: 175 | FZ155: 176 | GA155: 177 | GB155: 178 | GC155: 179 | GD155: 180 | GE155: 181 | GF155: 182 | GG155: 183 | GH155: 184 | GI155: 185 | GJ155: 186 | GK155: 187 | GL155: 188 | GM155: 189 | GN155: 190 | GO155: 191 | GP155: 192 | GQ155: 193 | GR155: 194 | GS155: 195 | GT155: 196 | GU155: 197 | GV155: 198 | GW155: 199 | GX155: 200 | GY155: 201 | GZ155: 202 | HA155: 203 | HB155: 204 | HC155: 205 | HD155: 206 | HE155: 207 | HF155: 208 | HG155: 209 | HH155: 210 | HI155: 211 | HJ155: 212 | HK155: 213 | HL155: 214 | HM155: 215 | HN155: 216 | HO155: 217 | HP155: 218 | HQ155: 219 | HR155: 220 | HS155: 221 | HT155: 222 | HU155: 223 | HV155: 224 | HW155: 225 | HX155: 226 | HY155: 227 | HZ155: 228 | IA155: 229 | IB155: 230 | IC155: 231 | ID155: 232 | IE155: 233 | IF155: 234 | IG155: 235 | IH155: 236 | II155: 237 | IJ155: 238 | IK155: 239 | IL155: 240 | IM155: 241 | IN155: 242 | IO155: 243 | IP155: 244 | IQ155: 245 | IR155: 246 | IS155: 247 | IT155: 248 | IU155: 249 | IV155: 250 | IW155: 255
B157: 12 | E157: DRL_Embrace_Delay_Welcome/Farewell | F157: 0 | G157: 40 | H157: 80 | I157: 120 | J157: 160 | K157: 200 | L157: 240 | M157: 280 | N157: 320 | O157: 360 | P157: 400 | Q157: 440 | R157: 480 | S157: 520 | T157: 560 | U157: 600 | V157: 640 | W157: 680 | X157: 720 | Y157: 760 | Z157: 800 | AA157: 840 | AB157: 880 | AC157: 920 | AD157: 960 | AE157: 1000 | AF157: 1040 | AG157: 1080 | AH157: 1120 | AI157: 1160 | AJ157: 1200 | AK157: 1240 | AL157: 1280 | AM157: 1320 | AN157: 1360 | AO157: 1400 | AP157: 1440 | AQ157: 1480 | AR157: 1520 | AS157: 1560 | AT157: 1600 | AU157: 1640 | AV157: 1680 | AW157: 1720 | AX157: 1760 | AY157: 1800 | AZ157: 1840 | BA157: 1880 | BB157: 1920 | BC157: 1960 | BD157: 2000
F158: 0 | G158: 1 | H158: 2 | I158: 3 | J158: 4 | K158: 5 | L158: 6 | M158: 7 | N158: 8 | O158: 9 | P158: 10 | Q158: 11 | R158: 12 | S158: 13 | T158: 14 | U158: 15 | V158: 16 | W158: 17 | X158: 18 | Y158: 19 | Z158: 20 | AA158: 21 | AB158: 22 | AC158: 23 | AD158: 24 | AE158: 25 | AF158: 26 | AG158: 27 | AH158: 28 | AI158: 29 | AJ158: 30 | AK158: 31 | AL158: 32 | AM158: 33 | AN158: 34 | AO158: 35 | AP158: 36 | AQ158: 37 | AR158: 38 | AS158: 39 | AT158: 40 | AU158: 41 | AV158: 42 | AW158: 43 | AX158: 44 | AY158: 45 | AZ158: 46 | BA158: 47 | BB158: 48 | BC158: 49 | BD158: 50 | BE158: 63
A160: 4x7bits | B160: 28 | E160: PWMx_WF_Target_Dutycycle
F161: 127
A163: 4x2x8bits | B163: 64 | E163: PWMx_WF_Fade_Duration | F163: 0 | G163: 40 | H163: 80 | I163: 120 | J163: 160 | K163: 200 | L163: 240 | M163: 280 | N163: 320 | O163: 360 | P163: 400 | Q163: 440 | R163: 480 | S163: 520 | T163: 560 | U163: 600 | V163: 640 | W163: 680 | X163: 720 | Y163: 760 | Z163: 800 | AA163: 840 | AB163: 880 | AC163: 920 | AD163: 960 | AE163: 1000 | AF163: 1040 | AG163: 1080 | AH163: 1120 | AI163: 1160 | AJ163: 1200 | AK163: 1240 | AL163: 1280 | AM163: 1320 | AN163: 1360 | AO163: 1400 | AP163: 1440 | AQ163: 1480 | AR163: 1520 | AS163: 1560 | AT163: 1600 | AU163: 1640 | AV163: 1680 | AW163: 1720 | AX163: 1760 | AY163: 1800 | AZ163: 1840 | BA163: 1880 | BB163: 1920 | BC163: 1960 | BD163: 2000 | BE163: 2040 | BF163: 2080 | BG163: 2120 | BH163: 2160 | BI163: 2200 | BJ163: 2240 | BK163: 2280 | BL163: 2320 | BM163: 2360 | BN163: 2400 | BO163: 2440 | BP163: 2480 | BQ163: 2520 | BR163: 2560 | BS163: 2600 | BT163: 2640 | BU163: 2680 | BV163: 2720 | BW163: 2760 | BX163: 2800 | BY163: 2840 | BZ163: 2880 | CA163: 2920 | CB163: 2960 | CC163: 3000 | CD163: 3040 | CE163: 3080 | CF163: 3120 | CG163: 3160 | CH163: 3200 | CI163: 3240 | CJ163: 3280 | CK163: 3320 | CL163: 3360 | CM163: 3400 | CN163: 3440 | CO163: 3480 | CP163: 3520 | CQ163: 3560 | CR163: 3600 | CS163: 3640 | CT163: 3680 | CU163: 3720 | CV163: 3760 | CW163: 3800 | CX163: 3840 | CY163: 3880 | CZ163: 3920 | DA163: 3960 | DB163: 4000 | DC163: 4040 | DD163: 4080 | DE163: 4120 | DF163: 4160 | DG163: 4200 | DH163: 4240 | DI163: 4280 | DJ163: 4320 | DK163: 4360 | DL163: 4400 | DM163: 4440 | DN163: 4480 | DO163: 4520 | DP163: 4560 | DQ163: 4600 | DR163: 4640 | DS163: 4680 | DT163: 4720 | DU163: 4760 | DV163: 4800 | DW163: 4840 | DX163: 4880 | DY163: 4920 | DZ163: 4960 | EA163: 5000 | EB163: 5040 | EC163: 5080 | ED163: 5120 | EE163: 5160 | EF163: 5200 | EG163: 5240 | EH163: 5280 | EI163: 5320 | EJ163: 5360 | EK163: 5400 | EL163: 5440 | EM163: 5480 | EN163: 5520 | EO163: 5560 | EP163: 5600 | EQ163: 5640 | ER163: 5680 | ES163: 5720 | ET163: 5760 | EU163: 5800 | EV163: 5840 | EW163: 5880 | EX163: 5920 | EY163: 5960 | EZ163: 6000 | FA163: 6040 | FB163: 6080 | FC163: 6120 | FD163: 6160 | FE163: 6200 | FF163: 6240 | FG163: 6280 | FH163: 6320 | FI163: 6360 | FJ163: 6400 | FK163: 6440 | FL163: 6480 | FM163: 6520 | FN163: 6560 | FO163: 6600 | FP163: 6640 | FQ163: 6680 | FR163: 6720 | FS163: 6760 | FT163: 6800 | FU163: 6840 | FV163: 6880 | FW163: 6920 | FX163: 6960 | FY163: 7000 | FZ163: 7040 | GA163: 7080 | GB163: 7120 | GC163: 7160 | GD163: 7200 | GE163: 7240 | GF163: 7280 | GG163: 7320 | GH163: 7360 | GI163: 7400 | GJ163: 7440 | GK163: 7480 | GL163: 7520 | GM163: 7560 | GN163: 7600 | GO163: 7640 | GP163: 7680 | GQ163: 7720 | GR163: 7760 | GS163: 7800 | GT163: 7840 | GU163: 7880 | GV163: 7920 | GW163: 7960 | GX163: 8000 | GY163: 8040 | GZ163: 8080 | HA163: 8120 | HB163: 8160 | HC163: 8200 | HD163: 8240 | HE163: 8280 | HF163: 8320 | HG163: 8360 | HH163: 8400 | HI163: 8440 | HJ163: 8480 | HK163: 8520 | HL163: 8560 | HM163: 8600 | HN163: 8640 | HO163: 8680 | HP163: 8720 | HQ163: 8760 | HR163: 8800 | HS163: 8840 | HT163: 8880 | HU163: 8920 | HV163: 8960 | HW163: 9000 | HX163: 9040 | HY163: 9080 | HZ163: 9120 | IA163: 9160 | IB163: 9200 | IC163: 9240 | ID163: 9280 | IE163: 9320 | IF163: 9360 | IG163: 9400 | IH163: 9440 | II163: 9480 | IJ163: 9520 | IK163: 9560 | IL163: 9600 | IM163: 9640 | IN163: 9680 | IO163: 9720 | IP163: 9760 | IQ163: 9800 | IR163: 9840 | IS163: 9880 | IT163: 9920 | IU163: 9960 | IV163: 10000
F164: 0 | G164: 1 | H164: 2 | I164: 3 | J164: 4 | K164: 5 | L164: 6 | M164: 7 | N164: 8 | O164: 9 | P164: 10 | Q164: 11 | R164: 12 | S164: 13 | T164: 14 | U164: 15 | V164: 16 | W164: 17 | X164: 18 | Y164: 19 | Z164: 20 | AA164: 21 | AB164: 22 | AC164: 23 | AD164: 24 | AE164: 25 | AF164: 26 | AG164: 27 | AH164: 28 | AI164: 29 | AJ164: 30 | AK164: 31 | AL164: 32 | AM164: 33 | AN164: 34 | AO164: 35 | AP164: 36 | AQ164: 37 | AR164: 38 | AS164: 39 | AT164: 40 | AU164: 41 | AV164: 42 | AW164: 43 | AX164: 44 | AY164: 45 | AZ164: 46 | BA164: 47 | BB164: 48 | BC164: 49 | BD164: 50 | BE164: 51 | BF164: 52 | BG164: 53 | BH164: 54 | BI164: 55 | BJ164: 56 | BK164: 57 | BL164: 58 | BM164: 59 | BN164: 60 | BO164: 61 | BP164: 62 | BQ164: 63 | BR164: 64 | BS164: 65 | BT164: 66 | BU164: 67 | BV164: 68 | BW164: 69 | BX164: 70 | BY164: 71 | BZ164: 72 | CA164: 73 | CB164: 74 | CC164: 75 | CD164: 76 | CE164: 77 | CF164: 78 | CG164: 79 | CH164: 80 | CI164: 81 | CJ164: 82 | CK164: 83 | CL164: 84 | CM164: 85 | CN164: 86 | CO164: 87 | CP164: 88 | CQ164: 89 | CR164: 90 | CS164: 91 | CT164: 92 | CU164: 93 | CV164: 94 | CW164: 95 | CX164: 96 | CY164: 97 | CZ164: 98 | DA164: 99 | DB164: 100 | DC164: 101 | DD164: 102 | DE164: 103 | DF164: 104 | DG164: 105 | DH164: 106 | DI164: 107 | DJ164: 108 | DK164: 109 | DL164: 110 | DM164: 111 | DN164: 112 | DO164: 113 | DP164: 114 | DQ164: 115 | DR164: 116 | DS164: 117 | DT164: 118 | DU164: 119 | DV164: 120 | DW164: 121 | DX164: 122 | DY164: 123 | DZ164: 124 | EA164: 125 | EB164: 126 | EC164: 127 | ED164: 128 | EE164: 129 | EF164: 130 | EG164: 131 | EH164: 132 | EI164: 133 | EJ164: 134 | EK164: 135 | EL164: 136 | EM164: 137 | EN164: 138 | EO164: 139 | EP164: 140 | EQ164: 141 | ER164: 142 | ES164: 143 | ET164: 144 | EU164: 145 | EV164: 146 | EW164: 147 | EX164: 148 | EY164: 149 | EZ164: 150 | FA164: 151 | FB164: 152 | FC164: 153 | FD164: 154 | FE164: 155 | FF164: 156 | FG164: 157 | FH164: 158 | FI164: 159 | FJ164: 160 | FK164: 161 | FL164: 162 | FM164: 163 | FN164: 164 | FO164: 165 | FP164: 166 | FQ164: 167 | FR164: 168 | FS164: 169 | FT164: 170 | FU164: 171 | FV164: 172 | FW164: 173 | FX164: 174 | FY164: 175 | FZ164: 176 | GA164: 177 | GB164: 178 | GC164: 179 | GD164: 180 | GE164: 181 | GF164: 182 | GG164: 183 | GH164: 184 | GI164: 185 | GJ164: 186 | GK164: 187 | GL164: 188 | GM164: 189 | GN164: 190 | GO164: 191 | GP164: 192 | GQ164: 193 | GR164: 194 | GS164: 195 | GT164: 196 | GU164: 197 | GV164: 198 | GW164: 199 | GX164: 200 | GY164: 201 | GZ164: 202 | HA164: 203 | HB164: 204 | HC164: 205 | HD164: 206 | HE164: 207 | HF164: 208 | HG164: 209 | HH164: 210 | HI164: 211 | HJ164: 212 | HK164: 213 | HL164: 214 | HM164: 215 | HN164: 216 | HO164: 217 | HP164: 218 | HQ164: 219 | HR164: 220 | HS164: 221 | HT164: 222 | HU164: 223 | HV164: 224 | HW164: 225 | HX164: 226 | HY164: 227 | HZ164: 228 | IA164: 229 | IB164: 230 | IC164: 231 | ID164: 232 | IE164: 233 | IF164: 234 | IG164: 235 | IH164: 236 | II164: 237 | IJ164: 238 | IK164: 239 | IL164: 240 | IM164: 241 | IN164: 242 | IO164: 243 | IP164: 244 | IQ164: 245 | IR164: 246 | IS164: 247 | IT164: 248 | IU164: 249 | IV164: 250 | IW164: 255
A166: 4x4bits | B166: 16 | C166: =SUM(B166:B173) -> 28 | D166: Failure | E166: Vf | F166: 2.1 | G166: 2.2 | H166: 2.3 | I166: 2.4 | J166: 2.5 | K166: 2.6 | L166: 2.7 | M166: 2.8 | N166: 2.9 | O166: 3 | P166: 3.1 | Q166: 3.2 | R166: 3.3 | S166: 3.4 | T166: 3.5 | U166: 3.6
F167: 0 | G167: 1 | H167: 2 | I167: 3 | J167: 4 | K167: 5 | L167: 6 | M167: 7 | N167: 8 | O167: 9 | P167: 10 | Q167: 11 | R167: 12 | S167: 13 | T167: 14 | U167: 15
A169: 4x2bits | B169: 8 | E169: LED_Failure_Deact | F169: No_deactivate | G169: Single_Fault | H169: Multiple_Fault
F170: 0 | G170: 1 | H170: 2 | I170: 3
A172: 4x1bit | B172: 4 | E172: LED_Failure_Report | F172: DISABLE | G172: ENABLE
F173: 0 | G173: 1
A175: Total | B175: bits | C175: =SUM(C4:C174) -> 781
B176: byts | C176: =ROUNDUP(C175/8,0) -> 98

Sheet CHNOutput
A1: CHN Output
A2: CC Output Channel Voltage
A3: Vf_Maximum_voltage(V) | C3: 50
A4: Output Channel | C4: Function | E4: LED NUM
A5: Channel1 | C5: LB | E5: 7
A6: Channel2 | C6: HB | E6: 8
A7: Channel3 | C7: TI | E7: 15
A8: Channel4 | C8: DRL | E8: 15
B9: Function | C9: Duty_Cycle(%) | D9: LSD_CHN_Assign | E9: LED NUM
A10: LSD1 | B10: DRL2 | C10: 20 | D10: Channel4 | E10: 4
A11: LSD2 | B11: Not_Used | C11: 5 | D11: Not_Used | E11: Not_Used
A12: PWM1 | B12: Not_Used | C12: 0
A13: PWM2 | B13: Not_Used | C13: 0
A14: PWM3 | B14: Not_Used | C14: 0
A15: PWM4 | B15: Not_Used | C15: 0
A16: 10100010111010100010011110111111011001010010001000000000101000000000000000000000000000000000000000000000000000 | F16: =LEN(A16) -> 110

Sheet HB_TURN_DPL_SBL
A1: HB | E1: TURN | H1: DRL/PO | K1: SBL
A2: Ramp_method | C2: BCM_LIN | E2: Signal Source | F2: InputCHN3 | H2: Signal Source | I2: BCM_LIN | K2: Trigger_SteAngle_Thershold(Deg) | L2: 0
A3: HB_combined_Front_fog | C3: INVALID | E3: TI_delay_time(ms) | F3: 0 | H3: DRL_POS_Trigger_Dutycycle(%) | I3: 10 | K3: Max_Speed_Thershold(Kph) | L3: 0
A4: LDM_internal_standard_ramping | C4: Immediate | H4: ParkPos_Intensity(%) | I4: 5
A5: Fade Speed(ms) | B5: Fast | C5: 200 | H5: Arbitration
B6: Middle | C6: 200 | H6: DRL_LB_Outage | I6: No_Impact
B7: Slow | C7: 200 | H7: DRL_Combined_TI | I7: TI_restrain_DRL/PO
H8: DRL_TI_Control | I8: TI_active,turnoff_DRL1/2orPO2,no_impact_on_PO1
H9: DRL_activation_time_after_deact(ms) | I9: 200
H10: DRL_ON_FTP | I10: No_Impact
A12: 0000000010001000110000100000000010000000001000000000000000000 | F12: =LEN(A12) -> 61

Sheet FAN
A1: FAN
A2: Activation | C2: LB/HB_Active
A3: NTC | C3: NTC1
A4: Temp(℃） | C4: 50
A5: RunTime_OnPwr(s) | C5: 0
A6: Outage_Detect | C6: DISABLE
A7: 00010000000 | B7: =LEN(A7) -> 11

Sheet BIN
A1: BIN
A2: Channel BIN Source
A3: Channel1 | J3: BIN_Channel1
A4: Channel2 | J4: BIN_Channel2
A5: Channel3 | J5: BIN_Channel3
A6: Channel4 | J6: BIN_Channel4
A7: BIN LED CHN CFG
A8: Output Channel | B8: Output Channel1 | F8: Output Channel2 | J8: Output Channel3 | N8: Output Channel4
A9: BIN Index | B9: BIN Param Cfg | C9: Resistance level(Ohm) | E9: BIN Current(mA) | F9: BIN Param Cfg | G9: Resistance level(Ohm) | I9: BIN Current(mA) | J9: BIN Param Cfg | K9: Resistance level(Ohm) | M9: BIN Current(mA) | N9: BIN Param Cfg | O9: Resistance level(Ohm) | Q9: BIN Current(mA)
A10: BIN0 | B10: 0 | C10: =C11 -> 900 | F10: 0 | G10: =G11 -> 900 | J10: 0 | K10: =K11 -> 900 | N10: 0 | O10: =O11 -> 900
A11: BIN1 | B11: 0 | C11: =IF(B10=0,1000*0.9,590) -> 900 | D11: =IF(B11=0,1000*1.1,1000+600) -> 1100 | E11: 850 | F11: 0 | G11: =IF(F10=0,1000*0.9,590) -> 900 | H11: =IF(F11=0,1000*1.1,1000+600) -> 1100 | I11: 1500 | J11: 0 | K11: =IF(J10=0,1000*0.9,590) -> 900 | L11: =IF(J11=0,1000*1.1,1000+600) -> 1100 | M11: 260 | N11: 0 | O11: =IF(N10=0,1000*0.9,590) -> 900 | P11: =IF(N11=0,1000*1.1,1000+600) -> 1100 | Q11: 150
A12: BIN2 | B12: 0 | C12: =IF(B11=0,1800*0.9,1800+200) -> 1620 | D12: =IF(B12=0,IF(B11=0,1800*1.1,1800+600),1800+1000) -> 1980 | E12: 850 | F12: 0 | G12: =IF(F11=0,1800*0.9,1800+200) -> 1620 | H12: =IF(F12=0,IF(F11=0,1800*1.1,1800+600),1800+1000) -> 1980 | I12: 1500 | J12: 0 | K12: =IF(J11=0,1800*0.9,1800+200) -> 1620 | L12: =IF(J12=0,IF(J11=0,1800*1.1,1800+600),1800+1000) -> 1980 | M12: 260 | N12: 0 | O12: =IF(N11=0,1800*0.9,1800+200) -> 1620 | P12: =IF(N12=0,IF(N11=0,1800*1.1,1800+600),1800+1000) -> 1980 | Q12: 150
A13: BIN3 | B13: 0 | C13: =IF(B12=0,3160*0.9,3160+200) -> 2844 | D13: =IF(B13=0,IF(B12=0,3160*1.1,3160+600),3160+1000) -> 3476 | E13: 850 | F13: 0 | G13: =IF(F12=0,3160*0.9,3160+200) -> 2844 | H13: =IF(F13=0,IF(F12=0,3160*1.1,3160+600),3160+1000) -> 3476 | I13: 1500 | J13: 0 | K13: =IF(J12=0,3160*0.9,3160+200) -> 2844 | L13: =IF(J13=0,IF(J12=0,3160*1.1,3160+600),3160+1000) -> 3476 | M13: 260 | N13: 0 | O13: =IF(N12=0,3160*0.9,3160+200) -> 2844 | P13: =IF(N13=0,IF(N12=0,3160*1.1,3160+600),3160+1000) -> 3476 | Q13: 150
A14: BIN4 | B14: 0 | C14: =IF(B13=0,4870*0.9,4870+200) -> 4383 | D14: =IF(B14=0,IF(B13=0,4870*1.1,4870+500),4870+1100) -> 5357 | E14: 850 | F14: 0 | G14: =IF(F13=0,4870*0.9,4870+200) -> 4383 | H14: =IF(F14=0,IF(F13=0,4870*1.1,4870+500),4870+1100) -> 5357 | I14: 1500 | J14: 0 | K14: =IF(J13=0,4870*0.9,4870+200) -> 4383 | L14: =IF(J14=0,IF(J13=0,4870*1.1,4870+500),4870+1100) -> 5357 | M14: 260 | N14: 0 | O14: =IF(N13=0,4870*0.9,4870+200) -> 4383 | P14: =IF(N14=0,IF(N13=0,4870*1.1,4870+500),4870+1100) -> 5357 | Q14: 150
A15: BIN5 | B15: 0 | C15: =IF(B14=0,7150*0.85,7150+0) -> 6077.5 | D15: =IF(B15=0,IF(B14=0,7150*1.1,7150+700),7150+1500) -> 7865 | E15: 850 | F15: 0 | G15: =IF(F14=0,7150*0.85,7150+0) -> 6077.5 | H15: =IF(F15=0,IF(F14=0,7150*1.1,7150+700),7150+1500) -> 7865 | I15: 1500 | J15: 0 | K15: =IF(J14=0,7150*0.85,7150+0) -> 6077.5 | L15: =IF(J15=0,IF(J14=0,7150*1.1,7150+700),7150+1500) -> 7865 | M15: 260 | N15: 0 | O15: =IF(N14=0,7150*0.85,7150+0) -> 6077.5 | P15: =IF(N15=0,IF(N14=0,7150*1.1,7150+700),7150+1500) -> 7865 | Q15: 150
A16: BIN6 | B16: 0 | C16: =IF(B15=0,9760*0.91,9760+100) -> 8881.6 | D16: =IF(B16=0,IF(B15=0,9760*1.05,9760+500),9760+1700) -> 10248 | E16: 850 | F16: 0 | G16: =IF(F15=0,9760*0.91,9760+100) -> 8881.6 | H16: =IF(F16=0,IF(F15=0,9760*1.05,9760+500),9760+1700) -> 10248 | I16: 1500 | J16: 0 | K16: =IF(J15=0,9760*0.91,9760+100) -> 8881.6 | L16: =IF(J16=0,IF(J15=0,9760*1.05,9760+500),9760+1700) -> 10248 | M16: 260 | N16: 0 | O16: =IF(N15=0,9760*0.91,9760+100) -> 8881.6 | P16: =IF(N16=0,IF(N15=0,9760*1.05,9760+500),9760+1700) -> 10248 | Q16: 150
A17: BIN7 | B17: 0 | C17: =IF(B16=0,13000*0.89,13000+300) -> 11570 | D17: =IF(B17=0,IF(B16=0,13000*1.1,13000*1.2),13000*1.3) -> 14300 | E17: 850 | F17: 0 | G17: =IF(F16=0,13000*0.89,13000+300) -> 11570 | H17: =IF(F17=0,IF(F16=0,13000*1.1,13000*1.2),13000*1.3) -> 14300 | I17: 1500 | J17: 0 | K17: =IF(J16=0,13000*0.89,13000+300) -> 11570 | L17: =IF(J17=0,IF(J16=0,13000*1.1,13000*1.2),13000*1.3) -> 14300 | M17: 260 | N17: 0 | O17: =IF(N16=0,13000*0.89,13000+300) -> 11570 | P17: =IF(N17=0,IF(N16=0,13000*1.1,13000*1.2),13000*1.3) -> 14300 | Q17: 150
A18: 000000000001001011010010110100101101001011010010110100101101001011010000000010001100100011001000110010001100100011001000110010001100100000000000010000000100000001000000010000000100000001000000010000110000000000000101000001010000010100000101000001010000010100000101 | Q18: =LEN(A18) -> 264

Sheet NTC_Derating
A1: NTC
A2: NTC_R0(kΩ) | F2: 10
A3: NTC_B_Constant | F3: 4000
A4: Channel1 NTC Source | F4: NTC1
A5: Channel2 NTC Source | F5: NTC2
A6: Channel3 NTC Source | F6: NTC3
A7: Channel4 NTC Source | F7: NTC4
B8: Output Channel1 | D8: Output Channel2 | F8: Output Channel3 | H8: Output Channel4
B9: Temp(℃） | C9: Dimming(%) | D9: Temp(℃） | E9: Dimming(%) | F9: Temp(℃） | G9: Dimming(%) | H9: Temp(℃） | I9: Dimming(%)
A10: Derate1 | B10: -40 | C10: 0 | D10: -40 | E10: 0 | F10: -40 | G10: 0 | H10: -40 | I10: 0 | J10: =100-C10 -> 100 | K10: =100-E10 -> 100 | L10: =100-G10 -> 100 | M10: =100-I10 -> 100
A11: Derate2 | B11: -5 | C11: 0 | D11: -5 | E11: 0 | F11: -5 | G11: 0 | H11: -5 | I11: 0 | J11: =100-C11 -> 100 | K11: =100-E11 -> 100 | L11: =100-G11 -> 100 | M11: =100-I11 -> 100
A12: Derate3 | B12: 80 | C12: 0 | D12: 80 | E12: 0 | F12: 80 | G12: 0 | H12: 80 | I12: 0 | J12: =100-C12 -> 100 | K12: =100-E12 -> 100 | L12: =100-G12 -> 100 | M12: =100-I12 -> 100
A13: Derate4 | B13: 120 | C13: 50 | D13: 120 | E13: 50 | F13: 120 | G13: 50 | H13: 120 | I13: 50 | J13: =100-C13 -> 50 | K13: =100-E13 -> 50 | L13: =100-G13 -> 50 | M13: =100-I13 -> 50
A14: Derate5 | B14: 135 | C14: 50 | D14: 135 | E14: 50 | F14: 135 | G14: 50 | H14: 135 | I14: 50 | J14: =100-C14 -> 50 | K14: =100-E14 -> 50 | L14: =100-G14 -> 50 | M14: =100-I14 -> 50
A15: Power reduction curve
A25: 10111100000010000000000000110101011101010010000000000000011010101110101001100000000000001101010111010101000000000000000110101011101010 | I25: =LEN(A25) -> 134

Sheet Animation
A1: Animation
A3: Welcome_Delay(ms) | B3: 1000
A4: Farewell_Delay(ms) | B4: 1000
B5: DRL | C5: PWM1 | D5: PWM2 | E5: PWM3 | F5: PWM4
A6: W/F_Dutycycle(%) | B6: 100 | C6: 0 | D6: 0 | E6: 0 | F6: 0
A7: Welcome_Duration(ms) | B7: 5000 | C7: 0 | D7: 0 | E7: 0 | F7: 0
A8: Farewell_Duration(ms) | B8: 5000 | C8: 0 | D8: 0 | E8: 0 | F8: 0
A9: 0110010110011100100011111010111110100000000000000000000000000000000000000000000000000000000000000000000000000000000000000000000 | F9: =LEN(A9) -> 127

Sheet LEDFailure
A1: LED_Failure
A2: CHN IDX | B2: CH1 | C2: CH2 | D2: CH3 | E2: CH4
A3: CHN SingleLED Vf(V) | B3: 2.3 | C3: 2.3 | D3: 2.3 | E3: 2.3
A5: FUNC | B5: LB | C5: HB | D5: DRL | E5: TI
A6: LED_Failure_Deact | B6: No_deactivate | C6: No_deactivate | D6: No_deactivate | E6: No_deactivate
A7: LED_Failure_Report | B7: ENABLE | C7: ENABLE | D7: ENABLE | E7: ENABLE
A8: 0010001000100010001001001001 | E8: =LEN(A8) -> 28
